[Event "Late-Titled-Tuesday-Blitz-April-16-2024"]
[Site "Chess.com"]
[Date "2024.04.16"]
[Round "2"]
[White "zacachess"]
[Black "Slovak_fighter2000"]
[Result "1/2-1/2"]
[WhiteElo "2356"]
[BlackElo "2529"]
[TimeControl "180+1"]
[EndTime "14:20:17 PDT"]
[Termination "Game drawn by agreement"]

1. e4 {[%clk 0:03:00]} 1... c5 {[%clk 0:02:58.4]} 2. Nf3 {[%clk 0:02:59.6]} 2...
Nc6 {[%clk 0:02:56.7]} 3. Bb5 {[%clk 0:02:59.4]} 3... e6 {[%clk 0:02:53.7]} 4.
Bxc6 {[%clk 0:02:58.3]} 4... bxc6 {[%clk 0:02:50.6]} 5. d3 {[%clk 0:02:57.5]}
5... Ne7 {[%clk 0:02:49]} 6. Qe2 {[%clk 0:02:57.5]} 6... Ng6 {[%clk 0:02:45.1]}
7. h4 {[%clk 0:02:57.2]} 7... h5 {[%clk 0:02:39.8]} 8. e5 {[%clk 0:02:54.3]}
8... f6 {[%clk 0:02:35.1]} 9. Qe4 {[%clk 0:02:52.7]} 9... Kf7 {[%clk 0:02:24.5]}
10. Bf4 {[%clk 0:02:51.6]} 10... Be7 {[%clk 0:02:15.3]} 11. g3 {[%clk 0:02:36]}
11... fxe5 {[%clk 0:02:04.3]} 12. Nxe5+ {[%clk 0:02:33.7]} 12... Nxe5 {[%clk
0:02:02.3]} 13. Bxe5 {[%clk 0:02:34.6]} 13... d6 {[%clk 0:01:51.6]} 14. Bf4
{[%clk 0:02:23.4]} 14... e5 {[%clk 0:01:42.4]} 15. Be3 {[%clk 0:02:01.7]} 15...
Bf6 {[%clk 0:01:30]} 16. Nd2 {[%clk 0:01:53]} 16... d5 {[%clk 0:01:11.1]} 17.
Qg2 {[%clk 0:01:51.8]} 17... Qd6 {[%clk 0:01:10.4]} 18. Nf3 {[%clk 0:01:50.4]}
18... Bf5 {[%clk 0:01:06.6]} 19. Ng5+ {[%clk 0:01:29.9]} 19... Kg6 {[%clk
0:01:02.8]} 20. O-O {[%clk 0:01:23.9]} 20... Rab8 {[%clk 0:00:59.2]} 21. b3
{[%clk 0:01:20.8]} 21... Rhe8 {[%clk 0:00:52]} 22. Rad1 {[%clk 0:01:17.7]} 22...
a6 {[%clk 0:00:50.1]} 23. f3 {[%clk 0:01:08]} 23... Rh8 {[%clk 0:00:41]} 24. Qf2
{[%clk 0:00:43.6]} 24... Bxg5 {[%clk 0:00:38.4]} 25. Bxg5 {[%clk 0:00:34.9]}
25... Rhf8 {[%clk 0:00:34.5]} 26. Be3 {[%clk 0:00:33.1]} 26... d4 {[%clk
0:00:34.3]} 27. Bd2 {[%clk 0:00:32.6]} 27... Rbe8 {[%clk 0:00:32.5]} 28. Qg2
{[%clk 0:00:31.1]} 28... Kh7 {[%clk 0:00:27.1]} 29. Rde1 {[%clk 0:00:29.1]}
29... Bg6 {[%clk 0:00:26]} 30. g4 {[%clk 0:00:28.2]} 30... Qd5 {[%clk
0:00:23.2]} 31. gxh5 {[%clk 0:00:20]} 31... Bxh5 {[%clk 0:00:23]} 32. Re4 {[%clk
0:00:20.4]} 32... Rf5 {[%clk 0:00:19.9]} 33. Rf2 {[%clk 0:00:09.6]} 33... Ref8
{[%clk 0:00:19.9]} 34. f4 {[%clk 0:00:08]} 34... exf4 {[%clk 0:00:18]} 35. Rexf4
{[%clk 0:00:08.9]} 35... Qxg2+ {[%clk 0:00:16.5]} 36. Kxg2 {[%clk 0:00:09.8]}
36... Rxf4 {[%clk 0:00:16]} 37. Rxf4 {[%clk 0:00:10.7]} 37... Re8 {[%clk
0:00:15.9]} 38. Rf2 {[%clk 0:00:09.6]} 38... Bd1 {[%clk 0:00:15.1]} 39. Bf4
{[%clk 0:00:09.8]} 39... Rf8 {[%clk 0:00:11.5]} 40. Bd6 {[%clk 0:00:08.2]} 40...
Rxf2+ {[%clk 0:00:10]} 41. Kxf2 {[%clk 0:00:09.1]} 41... Bxc2 {[%clk 0:00:10.6]}
42. Bxc5 {[%clk 0:00:09.4]} 42... Bxd3 {[%clk 0:00:11.1]} 43. Bxd4 {[%clk
0:00:09.8]} 43... Bb1 {[%clk 0:00:10.8]} 44. a3 {[%clk 0:00:09.7]} 44... Bc2
{[%clk 0:00:10.3]} 45. b4 {[%clk 0:00:09.9]} 45... Kh6 {[%clk 0:00:09.9]} 46.
Kg3 {[%clk 0:00:10.1]} 46... g6 {[%clk 0:00:10.3]} 47. Be3+ {[%clk 0:00:09.9]}
47... Kh5 {[%clk 0:00:10.3]} 48. Bg5 {[%clk 0:00:10.8]} 48... Ba4 {[%clk
0:00:10.3]} 49. Kf4 {[%clk 0:00:11]} 49... Bb5 {[%clk 0:00:11.2]} 50. Ke5 {[%clk
0:00:11.2]} 50... Kg4 {[%clk 0:00:11]} 51. Kd4 {[%clk 0:00:11.1]} 51... Kf5
{[%clk 0:00:11.4]} 52. Kc5 {[%clk 0:00:11.3]} 52... Ke4 {[%clk 0:00:10.8]} 53.
Kb6 {[%clk 0:00:10.2]} 53... Kd5 {[%clk 0:00:09.9]} 54. Be3 {[%clk 0:00:07.5]}
54... Kc4 {[%clk 0:00:08.8]} 55. Ka5 {[%clk 0:00:07.1]} 55... Kb3 {[%clk
0:00:08.3]} 56. Bc1 {[%clk 0:00:07.2]} 56... Kc2 {[%clk 0:00:08.7]} 57. Bg5
{[%clk 0:00:07]} 57... Kb3 {[%clk 0:00:09.1]} 58. Bc1 {[%clk 0:00:06.9]} 58...
Bf1 {[%clk 0:00:07.8]} 59. Kb6 {[%clk 0:00:05.6]} 59... Kc2 {[%clk 0:00:06.9]}
60. Bf4 {[%clk 0:00:05.1]} 60... Bb5 {[%clk 0:00:06.8]} 61. Ka5 {[%clk
0:00:03.6]} 61... Kb2 {[%clk 0:00:06.1]} 62. a4 {[%clk 0:00:03.6]} 62... Bc4
{[%clk 0:00:06.5]} 63. Kb6 {[%clk 0:00:03.1]} 63... Kc3 {[%clk 0:00:05.8]} 64.
Kc5 {[%clk 0:00:03.3]} 64... Be2 {[%clk 0:00:02.6]} 65. Be5+ {[%clk 0:00:03.7]}
65... Kb3 {[%clk 0:00:01.7]} 66. Bf6 {[%clk 0:00:04.6]} 66... Kxa4 {[%clk
0:00:01.7]} 67. Kxc6 {[%clk 0:00:04.3]} 67... Kxb4 {[%clk 0:00:02.2]} 68. Be7+
{[%clk 0:00:02.6]} 68... Kb3 {[%clk 0:00:02.3]} 69. Bd8 {[%clk 0:00:02.2]} 69...
Kb4 {[%clk 0:00:02.1]} 70. Kd6 {[%clk 0:00:02.5]} 70... a5 {[%clk 0:00:02.2]}
71. Ke5 {[%clk 0:00:02.9]} 71... Bh5 {[%clk 0:00:02.1]} 72. Be7+ {[%clk
0:00:03.1]} 72... Kb3 {[%clk 0:00:02.1]} 73. Kd4 {[%clk 0:00:03.4]} 73... a4
{[%clk 0:00:02.5]} 74. Bf6 {[%clk 0:00:03.9]} 74... a3 {[%clk 0:00:01.9]} 75.
Kd3 {[%clk 0:00:04.2]} 75... a2 {[%clk 0:00:02]} 76. Kd2 {[%clk 0:00:04.4]}
76... Bg4 {[%clk 0:00:02.5]} 77. Kc1 {[%clk 0:00:04.5]} 77... Bf5 {[%clk
0:00:03.1]} 78. Bg7 {[%clk 0:00:04.8]} 78... Be4 {[%clk 0:00:03.4]} 79. Bf6
{[%clk 0:00:04]} 79... Bd5 {[%clk 0:00:04]} 80. Bg7 {[%clk 0:00:04.5]} 80... Kc4
{[%clk 0:00:04.5]} 81. Kb2 {[%clk 0:00:03.8]} 81... Kd3 {[%clk 0:00:05.4]} 82.
Bf6 {[%clk 0:00:04.1]} 82... Ke4 {[%clk 0:00:05.7]} 83. Bg5 {[%clk 0:00:04.3]}
83... Kf5 {[%clk 0:00:06.1]} 84. Ka1 {[%clk 0:00:05.2]} 84... Kg4 {[%clk
0:00:06.7]} 85. Bd8 {[%clk 0:00:05.6]} 85... Kh5 {[%clk 0:00:07.6]} 86. Bg5
{[%clk 0:00:06.4]} 86... Kg4 {[%clk 0:00:07.7]} 87. Bd8 {[%clk 0:00:07.3]} 87...
Kf5 {[%clk 0:00:08.6]} 88. Bg5 {[%clk 0:00:07.7]} 88... Be6 {[%clk 0:00:09.5]}
89. Bd8 {[%clk 0:00:08.6]} 89... Bf7 {[%clk 0:00:10.4]} 90. Bg5 {[%clk
0:00:08.8]} 90... Ke6 {[%clk 0:00:11.3]} 91. Bd8 {[%clk 0:00:09.1]} 91... Kd7
{[%clk 0:00:12.2]} 92. Bg5 {[%clk 0:00:09.6]} 92... Be6 {[%clk 0:00:12.1]} 93.
Bf4 {[%clk 0:00:09.8]} 93... Kc6 {[%clk 0:00:12.2]} 94. Bg5 {[%clk 0:00:10.7]}
94... Kd5 {[%clk 0:00:13.1]} 95. Bf4 {[%clk 0:00:11.2]} 95... Ke4 {[%clk
0:00:14]} 96. Bg5 {[%clk 0:00:11.7]} 96... Kf5 {[%clk 0:00:14.8]} 97. Bd8 {[%clk
0:00:12.5]} 97... Kg4 {[%clk 0:00:15.7]} 98. Bg5 {[%clk 0:00:13]} 1/2-1/2

[Event "Late-Titled-Tuesday-Blitz-April-16-2024"]
[Site "Chess.com"]
[Date "2024.04.16"]
[Round "3"]
[White "ploxoi"]
[Black "PawnEatingZombie"]
[Result "0-1"]
[WhiteElo "2399"]
[BlackElo "2249"]
[TimeControl "180+1"]
[EndTime "14:22:56 PDT"]
[Termination "PawnEatingZombie won by resignation"]

1. d4 {[%clk 0:03:00.9]} 1... Nf6 {[%clk 0:02:58.8]} 2. c4 {[%clk 0:03:00.6]}
2... g6 {[%clk 0:02:59.4]} 3. Nf3 {[%clk 0:03:00.5]} 3... Bg7 {[%clk 0:02:59.7]}
4. g3 {[%clk 0:03:00.1]} 4... O-O {[%clk 0:03:00.1]} 5. Bg2 {[%clk 0:02:59.9]}
5... d6 {[%clk 0:03:00.7]} 6. O-O {[%clk 0:02:59.7]} 6... Nc6 {[%clk 0:03:01.4]}
7. Nc3 {[%clk 0:02:59]} 7... e5 {[%clk 0:03:01.5]} 8. Qd3 {[%clk 0:02:48.4]}
8... Re8 {[%clk 0:02:42.8]} 9. e4 {[%clk 0:02:31.2]} 9... exd4 {[%clk
0:02:35.5]} 10. Nxd4 {[%clk 0:02:29.5]} 10... Nxd4 {[%clk 0:02:35.5]} 11. Qxd4
{[%clk 0:02:26.5]} 11... Nxe4 {[%clk 0:02:34.6]} 12. Qd3 {[%clk 0:02:26.1]}
12... Nxc3 {[%clk 0:02:34.4]} 13. bxc3 {[%clk 0:02:26.7]} 13... Qf6 {[%clk
0:02:28.1]} 14. Bd2 {[%clk 0:02:24.5]} 14... c6 {[%clk 0:02:20.1]} 15. Rab1
{[%clk 0:02:16.5]} 15... Bf5 {[%clk 0:02:18.7]} 0-1

[Event "Late-Titled-Tuesday-Blitz-April-16-2024"]
[Site "Chess.com"]
[Date "2024.04.16"]
[Round "3"]
[White "Kimkibo"]
[Black "ritanovikova"]
[Result "1-0"]
[WhiteElo "2384"]
[BlackElo "2157"]
[TimeControl "180+1"]
[EndTime "14:23:44 PDT"]
[Termination "Kimkibo won by resignation"]

1. d4 {[%clk 0:02:59.6]} 1... c5 {[%clk 0:02:55.5]} 2. d5 {[%clk 0:02:58.5]}
2... e6 {[%clk 0:02:54.5]} 3. c4 {[%clk 0:02:58.6]} 3... Nf6 {[%clk 0:02:53]} 4.
Nc3 {[%clk 0:02:58.5]} 4... d6 {[%clk 0:02:47.6]} 5. e4 {[%clk 0:02:57.2]} 5...
e5 {[%clk 0:02:40.8]} 6. f4 {[%clk 0:02:53.3]} 6... exf4 {[%clk 0:02:38.5]} 7.
Nf3 {[%clk 0:02:53.3]} 7... Bg4 {[%clk 0:02:35.4]} 8. Bxf4 {[%clk 0:02:52.7]}
8... Nbd7 {[%clk 0:02:34]} 9. Be2 {[%clk 0:02:51.4]} 9... a6 {[%clk 0:02:33.3]}
10. O-O {[%clk 0:02:49.4]} 10... Be7 {[%clk 0:02:31.3]} 11. e5 {[%clk
0:02:48.5]} 11... Bxf3 {[%clk 0:02:21.4]} 12. exf6 {[%clk 0:02:47.6]} 12... Bxe2
{[%clk 0:02:18]} 13. fxg7 {[%clk 0:02:42.4]} 13... Rg8 {[%clk 0:02:09.2]} 14.
Qxe2 {[%clk 0:02:42.2]} 14... Rxg7 {[%clk 0:01:44.6]} 15. Bxd6 {[%clk
0:02:39.8]} 15... Nf6 {[%clk 0:01:38.2]} 16. Bxe7 {[%clk 0:02:38.1]} 16... Qxe7
{[%clk 0:01:37.3]} 17. Qxe7+ {[%clk 0:02:34.2]} 17... Kxe7 {[%clk 0:01:36.7]}
18. Rae1+ {[%clk 0:02:35.1]} 18... Kd7 {[%clk 0:01:28.9]} 19. Rxf6 {[%clk
0:02:34.4]} 1-0

[Event "Late-Titled-Tuesday-Blitz-April-16-2024"]
[Site "Chess.com"]
[Date "2024.04.16"]
[Round "3"]
[White "kinga2008"]
[Black "carloseduar100"]
[Result "1-0"]
[WhiteElo "2417"]
[BlackElo "2241"]
[TimeControl "180+1"]
[EndTime "14:24:12 PDT"]
[Termination "kinga2008 won by resignation"]

1. e4 {[%clk 0:03:00.9]} 1... e6 {[%clk 0:02:50.7]} 2. Nc3 {[%clk 0:02:59]} 2...
d5 {[%clk 0:02:51.5]} 3. Nf3 {[%clk 0:02:58.8]} 3... Nf6 {[%clk 0:02:51.3]} 4.
exd5 {[%clk 0:02:59.1]} 4... exd5 {[%clk 0:02:51.4]} 5. d4 {[%clk 0:02:59.8]}
5... Bd6 {[%clk 0:02:51.3]} 6. Bd2 {[%clk 0:03:00.4]} 6... O-O {[%clk
0:02:51.3]} 7. Be2 {[%clk 0:03:01.2]} 7... c6 {[%clk 0:02:51.6]} 8. O-O {[%clk
0:03:00.4]} 8... Bg4 {[%clk 0:02:51.9]} 9. h3 {[%clk 0:03:01]} 9... Bh5 {[%clk
0:02:51.6]} 10. Nh4 {[%clk 0:03:01.2]} 10... Bxe2 {[%clk 0:02:48.7]} 11. Qxe2
{[%clk 0:03:01.2]} 11... Re8 {[%clk 0:02:49.3]} 12. Qf3 {[%clk 0:03:01.1]} 12...
Ne4 {[%clk 0:02:43.3]} 13. Nxe4 {[%clk 0:02:59.8]} 13... dxe4 {[%clk 0:02:43.4]}
14. Qg4 {[%clk 0:02:58.8]} 14... Re6 {[%clk 0:02:33]} 15. Nf5 {[%clk 0:02:56.4]}
15... Bf8 {[%clk 0:02:30.4]} 16. Nh6+ {[%clk 0:02:55.5]} 16... Rxh6 {[%clk
0:02:27.5]} 17. Bxh6 {[%clk 0:02:56.4]} 17... f5 {[%clk 0:02:27.5]} 18. Qg3
{[%clk 0:02:42.2]} 18... Qxd4 {[%clk 0:02:23.6]} 19. Be3 {[%clk 0:02:41.8]}
19... Qxb2 {[%clk 0:02:17.8]} 20. Rab1 {[%clk 0:02:40.4]} 20... Qxc2 {[%clk
0:02:09.9]} 21. Rxb7 {[%clk 0:02:39.4]} 21... Na6 {[%clk 0:02:09.8]} 22. Bd4
{[%clk 0:02:38.6]} 22... g6 {[%clk 0:01:31]} 23. Qe5 {[%clk 0:02:30]} 1-0

[Event "Late-Titled-Tuesday-Blitz-April-16-2024"]
[Site "Chess.com"]
[Date "2024.04.16"]
[Round "3"]
[White "bipe137"]
[Black "giomar27"]
[Result "1-0"]
[WhiteElo "2711"]
[BlackElo "2479"]
[TimeControl "180+1"]
[EndTime "14:24:14 PDT"]
[Termination "bipe137 won by resignation"]

1. d4 {[%clk 0:03:00.9]} 1... g6 {[%clk 0:02:58.9]} 2. c4 {[%clk 0:03:00.8]}
2... Bg7 {[%clk 0:02:59]} 3. Nc3 {[%clk 0:03:01.4]} 3... e6 {[%clk 0:02:56]} 4.
h4 {[%clk 0:03:00.6]} 4... Ne7 {[%clk 0:02:51.5]} 5. h5 {[%clk 0:03:00.6]} 5...
d5 {[%clk 0:02:50.5]} 6. h6 {[%clk 0:02:53.4]} 6... Bf6 {[%clk 0:02:50.6]} 7.
Nf3 {[%clk 0:02:52.8]} 7... Nbc6 {[%clk 0:02:48.6]} 8. e4 {[%clk 0:02:50.3]}
8... dxe4 {[%clk 0:02:44.6]} 9. Nxe4 {[%clk 0:02:51.1]} 9... Bxd4 {[%clk
0:02:26.7]} 10. Nxd4 {[%clk 0:02:49.4]} 10... Qxd4 {[%clk 0:02:26.6]} 11. Bd3
{[%clk 0:02:46.7]} 11... f5 {[%clk 0:02:22.7]} 12. Be3 {[%clk 0:02:40.5]} 12...
Qe5 {[%clk 0:02:19.6]} 13. f4 {[%clk 0:02:35.7]} 13... Qa5+ {[%clk 0:02:01.7]}
14. Nc3 {[%clk 0:02:27.2]} 14... O-O {[%clk 0:01:55.5]} 15. a3 {[%clk
0:02:24.9]} 15... b6 {[%clk 0:01:36.4]} 16. b4 {[%clk 0:02:24]} 16... Qa6 {[%clk
0:01:35.7]} 17. b5 {[%clk 0:02:19.9]} 17... Qa5 {[%clk 0:01:36]} 18. Bd2 {[%clk
0:02:19.3]} 18... Nd4 {[%clk 0:01:31.3]} 19. Ne2 {[%clk 0:02:08.7]} 19... Nxe2
{[%clk 0:01:26.4]} 20. Bxe2 {[%clk 0:02:08.1]} 20... Bb7 {[%clk 0:01:22.1]} 21.
Bxa5 {[%clk 0:02:07.5]} 1-0

[Event "Late-Titled-Tuesday-Blitz-April-16-2024"]
[Site "Chess.com"]
[Date "2024.04.16"]
[Round "3"]
[White "chess_sharparchitect"]
[Black "MaiqMaster"]
[Result "1-0"]
[WhiteElo "2244"]
[BlackElo "2395"]
[TimeControl "180+1"]
[EndTime "14:24:22 PDT"]
[Termination "chess_sharparchitect won by resignation"]

1. c4 {[%clk 0:02:50.3]} 1... e6 {[%clk 0:02:54.7]} 2. e4 {[%clk 0:02:49.8]}
2... d5 {[%clk 0:02:51.4]} 3. exd5 {[%clk 0:02:49.9]} 3... exd5 {[%clk
0:02:52.3]} 4. cxd5 {[%clk 0:02:50.1]} 4... Nf6 {[%clk 0:02:49.9]} 5. Nc3 {[%clk
0:02:50]} 5... Nxd5 {[%clk 0:02:49.4]} 6. Bc4 {[%clk 0:02:50.2]} 6... c6 {[%clk
0:02:46.3]} 7. d4 {[%clk 0:02:34.7]} 7... Bb4 {[%clk 0:02:42.2]} 8. Ne2 {[%clk
0:02:30.5]} 8... O-O {[%clk 0:02:41.6]} 9. O-O {[%clk 0:02:28.2]} 9... Bg4
{[%clk 0:02:35.5]} 10. Qb3 {[%clk 0:02:22.5]} 10... Bd6 {[%clk 0:02:23.8]} 11.
Bxd5 {[%clk 0:02:04.2]} 11... cxd5 {[%clk 0:02:18.4]} 12. Qxb7 {[%clk
0:01:59.4]} 12... Qh4 {[%clk 0:01:58]} 13. Ng3 {[%clk 0:01:37.3]} 13... Nd7
{[%clk 0:01:38.2]} 14. Qxd5 {[%clk 0:01:37.2]} 14... Bc7 {[%clk 0:01:37.2]} 15.
Bg5 {[%clk 0:01:33.5]} 1-0

[Event "Late-Titled-Tuesday-Blitz-April-16-2024"]
[Site "Chess.com"]
[Date "2024.04.16"]
[Round "3"]
[White "StopLookingAtMyProfile"]
[Black "masnyszachistaaa"]
[Result "0-1"]
[WhiteElo "2336"]
[BlackElo "2571"]
[TimeControl "180+1"]
[EndTime "14:24:33 PDT"]
[Termination "masnyszachistaaa won by resignation"]

1. e4 {[%clk 0:03:00.9]} 1... e5 {[%clk 0:02:52.2]} 2. Nf3 {[%clk 0:02:59.6]}
2... Nc6 {[%clk 0:02:51.9]} 3. Bc4 {[%clk 0:03:00.1]} 3... Be7 {[%clk
0:02:48.4]} 4. d4 {[%clk 0:02:58.8]} 4... exd4 {[%clk 0:02:42.3]} 5. Nxd4 {[%clk
0:02:57.8]} 5... d6 {[%clk 0:02:34.1]} 6. Nc3 {[%clk 0:02:48.5]} 6... Nf6 {[%clk
0:02:32.9]} 7. O-O {[%clk 0:02:46.8]} 7... O-O {[%clk 0:02:33]} 8. h3 {[%clk
0:02:44]} 8... Re8 {[%clk 0:02:31.7]} 9. Re1 {[%clk 0:02:42.8]} 9... Bf8 {[%clk
0:02:29.4]} 10. Bg5 {[%clk 0:02:37.6]} 10... h6 {[%clk 0:02:22]} 11. Bh4 {[%clk
0:02:35.4]} 11... Ne5 {[%clk 0:02:21.7]} 12. Bf1 {[%clk 0:02:29.8]} 12... Ng6
{[%clk 0:02:21.1]} 13. Bg3 {[%clk 0:02:29]} 13... Bd7 {[%clk 0:02:16.5]} 14. f4
{[%clk 0:02:25.3]} 14... c5 {[%clk 0:01:57.2]} 15. Nf5 {[%clk 0:02:08.3]} 15...
Bxf5 {[%clk 0:01:25.1]} 16. exf5 {[%clk 0:02:06.5]} 16... Rxe1 {[%clk 0:01:10]}
17. Qxe1 {[%clk 0:02:07.4]} 17... Ne7 {[%clk 0:01:09.5]} 18. Bh4 {[%clk
0:02:05.2]} 18... Nxf5 {[%clk 0:01:08.7]} 19. Bxf6 {[%clk 0:02:00.6]} 19... Qxf6
{[%clk 0:01:09.6]} 20. Nd5 {[%clk 0:01:57.6]} 20... Qd4+ {[%clk 0:01:09.3]} 0-1

[Event "Late-Titled-Tuesday-Blitz-April-16-2024"]
[Site "Chess.com"]
[Date "2024.04.16"]
[Round "3"]
[White "FabianoCaruana"]
[Black "Andrii_Prydun"]
[Result "1-0"]
[WhiteElo "3075"]
[BlackElo "2358"]
[TimeControl "180+1"]
[EndTime "14:24:38 PDT"]
[Termination "FabianoCaruana won by checkmate"]

1. g3 {[%clk 0:03:00.9]} 1... e5 {[%clk 0:02:58]} 2. Bg2 {[%clk 0:03:01.8]} 2...
d5 {[%clk 0:02:57.8]} 3. b3 {[%clk 0:03:02.2]} 3... Be6 {[%clk 0:02:55.5]} 4.
Bb2 {[%clk 0:03:02.6]} 4... Bd6 {[%clk 0:02:55.8]} 5. Nf3 {[%clk 0:03:02.3]}
5... f6 {[%clk 0:02:55.5]} 6. d3 {[%clk 0:03:02]} 6... Ne7 {[%clk 0:02:55.5]} 7.
O-O {[%clk 0:03:02.6]} 7... Nd7 {[%clk 0:02:55.8]} 8. Nbd2 {[%clk 0:03:03]} 8...
O-O {[%clk 0:02:55.8]} 9. e4 {[%clk 0:03:03.4]} 9... d4 {[%clk 0:02:55.9]} 10.
Nc4 {[%clk 0:03:03.2]} 10... Bxc4 {[%clk 0:02:54.2]} 11. bxc4 {[%clk 0:03:02.9]}
11... a5 {[%clk 0:02:39]} 12. h4 {[%clk 0:03:02.5]} 12... a4 {[%clk 0:02:37.9]}
13. Bh3 {[%clk 0:03:02.5]} 13... a3 {[%clk 0:02:34.8]} 14. Bc1 {[%clk
0:03:02.8]} 14... Nc5 {[%clk 0:02:34]} 15. h5 {[%clk 0:03:01]} 15... Na4 {[%clk
0:02:05.2]} 16. Nh4 {[%clk 0:02:59.9]} 16... Nc3 {[%clk 0:02:00.1]} 17. Be6+
{[%clk 0:02:59.6]} 17... Kh8 {[%clk 0:01:59.8]} 18. Qg4 {[%clk 0:03:00.5]} 18...
Qe8 {[%clk 0:01:56.6]} 19. Kg2 {[%clk 0:03:00.4]} 19... Ra6 {[%clk 0:01:54]} 20.
Ng6+ {[%clk 0:02:58.3]} 20... Nxg6 {[%clk 0:01:50]} 21. hxg6 {[%clk 0:02:59.2]}
21... Bc5 {[%clk 0:01:01.8]} 22. Rh1 {[%clk 0:02:58.6]} 22... h6 {[%clk
0:00:24.3]} 23. Bxh6 {[%clk 0:02:56.8]} 23... Qxe6 {[%clk 0:00:21.6]} 24. Bf4+
{[%clk 0:02:53.9]} 24... Kg8 {[%clk 0:00:21.5]} 25. Rh8+ {[%clk 0:02:54.8]}
25... Kxh8 {[%clk 0:00:19.2]} 26. Rh1+ {[%clk 0:02:55.7]} 26... Kg8 {[%clk
0:00:20]} 27. Rh8+ {[%clk 0:02:56]} 27... Kxh8 {[%clk 0:00:19.2]} 28. Qh5+
{[%clk 0:02:56.9]} 28... Kg8 {[%clk 0:00:20.1]} 29. Qh7# {[%clk 0:02:57.5]} 1-0

[Event "Late-Titled-Tuesday-Blitz-April-16-2024"]
[Site "Chess.com"]
[Date "2024.04.16"]
[Round "3"]
[White "Hirna2005"]
[Black "OriTaichman"]
[Result "0-1"]
[WhiteElo "2335"]
[BlackElo "2564"]
[TimeControl "180+1"]
[EndTime "14:25:39 PDT"]
[Termination "OriTaichman won by resignation"]

1. e4 {[%clk 0:03:00.9]} 1... c5 {[%clk 0:02:55.9]} 2. c3 {[%clk 0:03:00.6]}
2... d6 {[%clk 0:02:55.8]} 3. d4 {[%clk 0:03:00]} 3... Nf6 {[%clk 0:02:56.4]} 4.
Bd3 {[%clk 0:02:57.6]} 4... e5 {[%clk 0:02:56]} 5. Nf3 {[%clk 0:02:56.6]} 5...
Nc6 {[%clk 0:02:54.1]} 6. Be3 {[%clk 0:02:52.3]} 6... Ng4 {[%clk 0:02:41.5]} 7.
Bg5 {[%clk 0:02:44.4]} 7... Be7 {[%clk 0:02:40]} 8. Bxe7 {[%clk 0:02:38.9]} 8...
Qxe7 {[%clk 0:02:39.1]} 9. O-O {[%clk 0:02:27.4]} 9... exd4 {[%clk 0:02:36.5]}
10. cxd4 {[%clk 0:02:27.3]} 10... cxd4 {[%clk 0:02:33.9]} 11. Qa4 {[%clk
0:02:07.7]} 11... Ne5 {[%clk 0:02:26.6]} 12. Bb5 {[%clk 0:02:03.5]} 12... Nxf3+
{[%clk 0:02:20.3]} 13. gxf3 {[%clk 0:02:03.3]} 13... O-O {[%clk 0:02:18.5]} 14.
Bxc6 {[%clk 0:01:53.5]} 14... Bh3 {[%clk 0:02:12.4]} 15. f4 {[%clk 0:01:29.9]}
15... Bxf1 {[%clk 0:01:34.5]} 16. Kxf1 {[%clk 0:01:13.5]} 16... bxc6 {[%clk
0:01:34.1]} 17. Qxc6 {[%clk 0:01:13.2]} 17... Rac8 {[%clk 0:01:28.6]} 18. Qd5
{[%clk 0:01:13.1]} 18... Rc1+ {[%clk 0:01:27.3]} 19. Ke2 {[%clk 0:01:13.8]}
19... Qh4 {[%clk 0:01:25.6]} 20. Qxd4 {[%clk 0:01:05.1]} 20... Qg4+ {[%clk
0:01:24.8]} 21. f3 {[%clk 0:00:48]} 21... Qg2+ {[%clk 0:01:20.4]} 22. Qf2 {[%clk
0:00:45.7]} 22... Rc2+ {[%clk 0:01:20.5]} 23. Nd2 {[%clk 0:00:45.9]} 23... Rxd2+
{[%clk 0:01:20.6]} 0-1

[Event "Late-Titled-Tuesday-Blitz-April-16-2024"]
[Site "Chess.com"]
[Date "2024.04.16"]
[Round "3"]
[White "Flawless_Fighter"]
[Black "teresin05"]
[Result "1-0"]
[WhiteElo "2758"]
[BlackElo "2336"]
[TimeControl "180+1"]
[EndTime "14:25:52 PDT"]
[Termination "Flawless_Fighter won by resignation"]

1. e4 {[%clk 0:02:58.5]} 1... c5 {[%clk 0:00:41.7]} 2. Nf3 {[%clk 0:02:57.5]}
2... Nc6 {[%clk 0:00:41.5]} 3. g3 {[%clk 0:02:55.8]} 3... d6 {[%clk 0:00:38.6]}
4. Bg2 {[%clk 0:02:55.9]} 4... g6 {[%clk 0:00:39]} 5. O-O {[%clk 0:02:56.5]}
5... Bg7 {[%clk 0:00:39.7]} 6. Re1 {[%clk 0:02:56.9]} 6... e5 {[%clk 0:00:37.2]}
7. d3 {[%clk 0:02:56.1]} 7... Nge7 {[%clk 0:00:37.7]} 8. Nc3 {[%clk 0:02:55.6]}
8... O-O {[%clk 0:00:38.3]} 9. h4 {[%clk 0:02:55.7]} 9... Be6 {[%clk 0:00:39]}
10. h5 {[%clk 0:02:56]} 10... f5 {[%clk 0:00:39.3]} 11. h6 {[%clk 0:02:56]}
11... Bf6 {[%clk 0:00:38.7]} 12. Ng5 {[%clk 0:02:56.3]} 12... Bd7 {[%clk
0:00:35.5]} 13. exf5 {[%clk 0:02:54]} 13... Bxf5 {[%clk 0:00:32.4]} 14. Bd2
{[%clk 0:02:48.1]} 14... d5 {[%clk 0:00:32.5]} 15. f4 {[%clk 0:02:37.9]} 15...
exf4 {[%clk 0:00:31.1]} 16. Bxf4 {[%clk 0:02:37.7]} 16... d4 {[%clk 0:00:31.5]}
17. Nce4 {[%clk 0:02:37]} 17... Nd5 {[%clk 0:00:27.8]} 18. Nxf6+ {[%clk
0:02:34.1]} 18... Rxf6 {[%clk 0:00:26.1]} 19. Qf3 {[%clk 0:02:29.8]} 19... Nxf4
{[%clk 0:00:24.4]} 20. gxf4 {[%clk 0:02:28.6]} 20... Qd7 {[%clk 0:00:23.2]} 21.
Qd5+ {[%clk 0:02:28.1]} 21... Qxd5 {[%clk 0:00:15.3]} 22. Bxd5+ {[%clk 0:02:29]}
22... Kh8 {[%clk 0:00:15.2]} 23. Nf7+ {[%clk 0:02:28.3]} 23... Kg8 {[%clk
0:00:15.2]} 24. Ng5+ {[%clk 0:02:18.5]} 24... Kh8 {[%clk 0:00:14.4]} 25. Bxc6
{[%clk 0:02:11.8]} 25... Rxc6 {[%clk 0:00:12.6]} 26. Re7 {[%clk 0:02:12.3]}
26... Rb8 {[%clk 0:00:11.4]} 27. Rae1 {[%clk 0:02:12.3]} 27... Rcc8 {[%clk
0:00:08.5]} 28. Rxh7+ {[%clk 0:02:12.6]} 28... Kg8 {[%clk 0:00:08.4]} 29. Ree7
{[%clk 0:02:12.5]} 29... Re8 {[%clk 0:00:04]} 30. Reg7+ {[%clk 0:02:12.7]} 1-0